bitfinex/quotes_SOLUSD_20220208
["timestamp","ask_amount","ask_price","bid_price","bid_amount"]
[1644332764061,13.6641,111.92,111.81,45.12683398]
[1644332764463,0.25,111.92,111.82,46.38009521]
[1644332764663,0.03180053,111.93,111.83,44.696]
[1644332764865,0.03180053,111.93,111.85,13.4088]
[1644332765082,19.44170053,111.95,111.86,45.17897432]
[1644332765284,0.03180053,111.94,111.86,45.17897432]
[1644332765485,19.4099,111.95,111.86,45.17897432]
[1644332766087,19.4099,111.95,111.86,58.58717432]
[1644332766290,6.0,111.95,111.86,58.83717432]
[1644332766487,0.03180053,111.96,111.87,12.51878016]
[1644332766686,2.52543872,111.99,111.87,12.51878016]
[1644332766687,0.03180053,111.98,111.87,85.7219371]
[1644332766886,0.03180053,111.98,111.88,58.73293884]
[1644332767089,10.03563478,112.0,111.89,10.69]
[1644332767287,0.03180053,111.99,111.9,38.66459541]
[1644332767487,13.4048,111.99,111.9,38.66459541]
[1644332767687,46.36242793,111.98,111.9,38.66459541]
[1644332768087,6.25,111.98,111.9,38.66459541]
[1644332768487,0.25,111.98,111.9,38.66459541]
[1644332768689,2.80723925,112.0,111.9,38.66459541]
[1644332768891,8.80723925,112.0,111.9,38.66459541]
[1644332769088,38.80025474,111.99,111.9,38.66459541]
[1644332769292,39.05025474,111.99,111.9,38.66459541]
[1644332769690,13.406,111.98,111.9,38.66459541]
[1644332770192,13.656,111.98,111.9,38.91459541]
[1644332770390,0.25,111.98,111.9,52.31829541]
[1644332770592,0.03180053,112.0,111.9,52.31829541]
[1644332770791,71.64593872,112.01,111.9,52.06829541]
[1644332770990,5.02969273,112.0,111.9,52.06829541]
[1644332771193,52.81599619,111.99,111.9,52.06829541]
[1644332771397,52.81599619,111.99,111.9,38.66459541]
[1644332771794,53.06599619,111.99,111.9,38.66459541]
[1644332772193,13.6545,111.99,111.9,38.66459541]
[1644332772793,16.17993872,111.99,111.9,38.66459541]
[1644332773594,13.4045,111.99,111.9,40.49300095]
[1644332773795,15.92993872,111.99,111.9,38.66459541]
[1644332774195,2.52543872,111.99,111.91,1.82840554]
[1644332774395,0.03180053,112.0,111.91,12.51840554]
[1644332774594,37.836,112.01,111.91,12.76840554]
[1644332774896,2.55723925,112.02,111.93,13.4001]
[1644332775097,2.55723925,112.03,111.94,40.93057453]
[1644332775295,2.52543872,112.03,111.94,43.00898007]
[1644332775494,2.52543872,112.03,111.95,1.82840554]
[1644332775695,2.52543872,112.03,111.96,47.61513465]
[1644332775896,5.00270581,112.04,111.96,47.61513465]
[1644332776096,0.25,112.03,111.96,49.44354019]
[1644332776396,2.77543872,112.04,111.96,49.44354019]
[1644332776797,2.77543872,112.04,111.96,62.84064019]
[1644332777097,2.77543872,112.04,111.96,61.01223465]
[1644332777799,2.52543872,112.04,111.96,72.82623465]
[1644332777999,2.55723925,112.06,111.98,13.394]
[1644332778209,15.92013872,112.07,111.98,13.644]
[1644332778507,3.78815808,112.09,111.99,45.17476221]
[1644332778705,0.03196804,112.08,112.0,10.69]
[1644332779001,0.03196804,112.11,112.01,66.4002]
[1644332779204,0.03196804,112.11,112.02,10.69]
[1644332779402,0.44809644,112.12,112.03,44.27110338]
[1644332779598,0.44809644,112.12,112.04,10.69]
[1644332779800,0.44809644,112.12,112.05,35.96689154]
[1644332780002,0.44809644,112.12,112.05,44.23389154]
[1644332780201,0.44809644,112.12,112.05,63.61709154]
[1644332780402,0.44809644,112.12,112.05,49.35009154]
[1644332783103,0.44809644,112.12,112.05,35.96689154]
[1644332783300,2.55585193,112.12,112.01,10.69]
[1644332783500,2.55585193,112.12,111.99,34.56]
[1644332783700,0.03196804,112.11,111.99,34.56]
[1644332783901,0.03196804,112.11,112.0,1.82840554]
[1644332784103,0.03196804,112.11,112.01,10.69]
[1644332784306,0.44809644,112.12,112.02,53.01]
[1644332784502,0.03196804,112.11,112.03,10.69]
[1644332784704,0.44809644,112.12,112.03,34.24556248]
[1644332784905,0.44809644,112.12,112.03,49.84637424]
[1644332785205,0.44809644,112.12,112.04,46.22666247]
[1644332785406,0.44809644,112.12,112.05,13.3823]
[1644332785606,0.44809644,112.12,112.06,47.54392743]
[1644332786007,0.44809644,112.12,112.06,29.71354712]
[1644332786608,0.44809644,112.12,112.06,31.54695493]
[1644332787206,0.44809644,112.12,112.06,29.71354712]
[1644332787408,0.44809644,112.12,112.06,40.40354712]
[1644332787809,13.41686804,112.16,112.06,54.03794712]
[1644332788009,0.03196804,112.16,112.06,54.03794712]
[1644332788208,44.05424507,112.18,112.08,46.32449618]
[1644332788410,0.03196804,112.17,112.08,10.69]
[1644332788609,46.13003252,112.18,112.06,10.69]
[1644332788809,2.13972353,112.17,112.06,10.69]
[1644332789012,15.52272353,112.17,112.03,13.3876]
[1644332789213,0.03196804,112.16,112.03,10.69]
[1644332789416,38.40343229,112.15,112.04,44.82521997]
[1644332789812,38.65343229,112.15,112.04,44.82521997]
[1644332790013,57.41147703,112.13,112.04,44.82521997]
[1644332790216,57.66147703,112.13,112.04,44.82521997]
[1644332791420,13.6392,112.13,112.04,44.82521997]
[1644332791618,6.0,112.13,112.04,58.21191997]
[1644332792022,2.10775549,112.13,112.04,44.82521997]
[1644332792221,2.10775549,112.13,112.0,46.0596]
[1644332792421,0.03196804,112.12,111.99,10.69]
[1644332792623,0.03196804,112.12,111.97,10.69]
[1644332792823,2.10775549,112.11,111.97,10.69]
[1644332793023,0.03196804,112.1,111.97,10.69]
[1644332793227,48.5599876,112.1,111.98,46.14338598]
[1644332793427,15.50185549,112.09,111.98,46.14338598]
[1644332793625,33.89768976,112.08,111.98,46.14338598]
[1644332793929,34.1796578,112.08,111.98,46.14338598]
[1644332794123,34.14768976,112.08,111.98,46.14338598]
[1644332795224,40.14768976,112.08,111.98,46.14338598]
[1644332795424,13.3952,112.07,111.98,46.14338598]
[1644332795627,38.24456299,112.06,111.98,46.14338598]
[1644332795827,38.24456299,112.06,111.95,13.397]
[1644332796026,38.24456299,112.06,111.93,10.69]
[1644332796027,40.63428652,112.06,111.93,10.69]
[1644332796227,0.03196804,112.05,111.93,10.69]
[1644332796427,2.13972353,112.05,111.93,10.69]
[1644332796627,13.3989,112.04,111.93,10.69]
[1644332796827,44.18114633,112.03,111.94,40.32656886]
[1644332797228,44.43114633,112.03,111.94,40.32656886]
[1644332797631,4.49596804,112.05,111.94,40.32656886]
[1644332797829,0.03196804,112.06,111.95,1.83324436]
[1644332798031,0.03196804,112.05,111.95,1.83324436]
[1644332798233,2.10775549,112.05,111.94,40.32656886]
[1644332798431,12.82972353,112.05,111.94,40.32656886]
[1644332798633,48.81994966,112.04,111.94,40.32656886]
[1644332798864,13.4,112.03,111.94,40.32656886]
[1644332799045,35.71351515,112.02,111.94,40.32656886]
[1644332799444,35.96351515,112.02,111.94,40.32656886]
[1644332799845,41.96351515,112.02,111.94,40.32656886]
[1644332800747,13.4019,112.01,111.94,40.32656886]
[1644332800947,41.96351515,112.02,111.94,40.32656886]
[1644332801148,0.25,112.01,111.94,40.32656886]
[1644332801349,6.0,112.02,111.94,42.40981322]
[1644332801547,0.03196804,112.05,111.94,42.40981322]
[1644332801748,13.3998,112.03,111.94,55.80881322]
[1644332802248,40.64617873,112.02,111.94,40.32656886]
[1644332802647,40.89617873,112.02,111.94,40.32656886]
[1644332802851,13.4028,112.0,111.94,40.32656886]
[1644332803248,0.25,112.0,111.94,40.32656886]
[1644332804352,0.25,112.02,111.94,42.15958814]
[1644332804549,0.25,112.04,111.94,42.15958814]
[1644332804749,101.6526,112.07,111.94,42.15958814]
[1644332804750,0.03196804,112.03,111.94,42.15958814]
[1644332804950,0.03196804,112.04,111.94,42.15958814]
[1644332805152,2.50658883,112.06,111.94,42.15958814]
[1644332805354,47.27887799,112.05,111.94,42.15958814]
[1644332805552,13.3997,112.03,111.94,55.55868814]
[1644332805751,35.17879937,112.02,111.94,55.55868814]
[1644332806351,35.42879937,112.02,111.94,55.55868814]
[1644332806752,35.42879937,112.02,111.94,53.72566886]
[1644332807357,0.25,112.02,111.94,53.72566886]
[1644332807560,0.25,112.02,111.94,55.55868814]
[1644332807753,13.67926804,112.05,111.94,66.24868814]
[1644332807959,19.67926804,112.05,111.94,66.24868814]
[1644332808164,13.67926804,112.05,111.94,66.24868814]
[1644332808361,60.62740951,112.05,111.94,66.24868814]
[1644332808760,0.25,112.05,111.94,66.49868814]
[1644332809163,0.03196804,112.06,111.94,72.49868814]
[1644332809759,13.42736804,112.06,111.94,72.49868814]
[1644332809961,0.03196804,112.05,111.94,72.49868814]
[1644332810168,0.03196804,112.06,111.98,13.3904]
[1644332810361,2.47604861,112.09,111.99,10.69]
[1644332810362,2.50801665,112.09,111.99,10.69]
[1644332810564,0.03196804,112.08,111.99,18.77301928]
[1644332810764,0.03196804,112.11,112.0,1.83301928]
[1644332810962,0.03196804,112.09,112.01,10.69]
[1644332811162,0.03196804,112.09,112.02,48.50550813]
[1644332811364,47.27906804,112.12,112.03,10.69]
[1644332811662,0.03196804,112.11,112.03,24.0776]
[1644332811862,60.636,112.12,112.03,24.0776]
[1644332812063,66.636,112.12,112.03,24.0776]
[1644332812264,0.03196804,112.13,112.04,39.99662964]
[1644332812464,0.03196804,112.14,112.07,13.3806]
[1644332812664,43.86300428,112.17,112.09,42.48486127]
[1644332812665,0.03196804,112.15,112.09,42.48486127]
[1644332812864,43.86300428,112.17,112.09,53.17486127]
[1644332813068,43.86300428,112.17,112.09,42.48486127]
[1644332813466,2.47720995,112.16,112.06,10.69]
[1644332813767,2.47720995,112.16,112.03,55.1438]
[1644332813768,13.3864,112.14,112.05,24.0757]
[1644332813967,13.3864,112.14,112.05,10.69]
[1644332814167,13.6364,112.14,112.05,10.69]
[1644332814368,38.56270504,112.13,112.06,36.27607515]
[1644332814768,13.3886,112.12,112.06,36.27607515]
[1644332815369,0.25,112.12,112.06,36.27607515]
[1644332816567,0.03196804,112.14,112.06,36.27607515]
[1644332816768,38.85773055,112.12,112.06,36.27607515]
[1644332817168,39.10773055,112.12,112.06,36.27607515]
[1644332817768,0.25,112.12,112.06,36.27607515]
[1644332818369,13.3874,112.13,112.06,36.27607515]
[1644332818569,13.3874,112.13,112.06,36.52607515]
[1644332818769,58.07248139,112.13,112.06,36.27607515]
[1644332820572,13.3874,112.13,112.06,36.27607515]
[1644332820776,0.03196804,112.18,112.06,47.21607515]
[1644332820974,0.03196804,112.16,112.06,49.04044122]
[1644332821174,0.03196804,112.17,112.06,49.04044122]
[1644332821375,2.50883647,112.18,112.06,49.04044122]
[1644332821575,43.70931913,112.17,112.06,49.04044122]
[1644332821780,57.09361913,112.17,112.06,62.42554122]
[1644332821977,57.06165109,112.17,112.06,62.42554122]
[1644332822376,0.25,112.17,112.06,62.42554122]
[1644332822581,0.25,112.17,112.06,68.42554122]
[1644332822879,0.03196804,112.18,112.06,68.42554122]
[1644332823082,0.03196804,112.18,112.06,62.42554122]
[1644332823283,37.6635686,112.18,112.06,62.42554122]
[1644332823580,0.03196804,112.17,112.06,62.42554122]
[1644332824777,0.03196804,112.17,112.06,68.42554122]
[1644332825597,0.03196804,112.17,112.06,62.42554122]
[1644332825799,0.03196804,112.17,112.06,68.42554122]
[1644332827400,0.03196804,112.17,112.06,68.17554122]
[1644332827599,0.03196804,112.17,112.06,60.35117515]
[1644332828000,4.48996804,112.17,112.06,60.35117515]
[1644332828199,41.16338647,112.16,112.06,60.35117515]
[1644332828401,41.19535451,112.16,112.06,60.35117515]
[1644332828601,41.44535451,112.16,112.06,60.35117515]
[1644332828802,41.44535451,112.16,112.06,60.60117515]
[1644332829301,41.44535451,112.16,112.06,60.35117515]
[1644332830201,54.83125451,112.16,112.06,60.35117515]
[1644332830403,56.90704196,112.16,112.06,36.27607515]
[1644332830602,54.79928647,112.16,112.06,36.27607515]
[1644332830904,54.83125451,112.16,112.06,36.27607515]
[1644332831105,54.79928647,112.16,112.06,36.27607515]
[1644332831502,54.79928647,112.16,112.04,47.0837]
[1644332831706,0.03196804,112.15,112.02,10.69]
[1644332832004,13.3893,112.13,112.03,6.0]
[1644332832307,23.13826804,112.13,112.02,6.0]
[1644332832503,41.26232285,112.11,112.0,41.80551729]
[1644332832704,41.54429089,112.11,112.0,41.80551729]
[1644332833003,0.25,112.11,112.0,55.19791729]
[1644332833203,0.25,112.11,112.01,10.69]
[1644332833603,0.03196804,112.14,112.01,10.69]
[1644332833804,0.03196804,112.14,112.01,12.51284653]
[1644332834007,43.92798737,112.14,112.02,37.36849998]
[1644332834304,13.42136804,112.13,112.02,61.69779998]
[1644332834505,38.52968999,112.12,112.02,61.69779998]
[1644332834905,38.77968999,112.12,112.02,61.69779998]
[1644332835106,0.25,112.12,112.02,63.52064651]
[1644332835305,0.03196804,112.13,112.02,63.52064651]
[1644332835908,0.03196804,112.14,112.02,63.52064651]
[1644332836205,0.03196804,112.12,112.02,63.52064651]
[1644332836606,122.10775549,112.11,111.99,1.82284653]
[1644332836805,15.50274343,112.1,111.93,71.9118]
[1644332837007,81.17299831,112.1,111.93,71.9118]
[1644332837205,16.04749939,112.09,111.93,71.9118]
[1644332837507,41.4211679,112.08,111.94,42.72075411]
[1644332837706,41.00843929,112.06,111.94,42.72075411]
[1644332838208,41.25843929,112.06,111.94,42.72075411]
[1644332839206,57.30593868,112.06,111.96,0.67748555]
[1644332839405,57.30593868,112.06,111.97,44.62666907]
[1644332839806,44.17951552,112.04,111.97,44.62666907]
[1644332840209,2.10775549,112.03,111.97,44.62666907]
[1644332840407,16.04749939,112.04,111.97,44.62666907]
[1644332840610,18.15525488,112.07,111.97,44.62666907]
[1644332840809,16.04749939,112.07,111.97,44.62666907]
[1644332841111,22.04749939,112.07,111.97,44.62666907]
[1644332841310,46.17811873,112.06,111.97,44.62666907]
[1644332841514,13.3983,112.04,111.97,44.62666907]
[1644332841708,39.26003608,112.04,111.97,44.62666907]
[1644332841909,55.30753547,112.04,111.97,44.62666907]
[1644332843811,55.30753547,112.04,111.96,0.67748555]
[1644332844015,2.10775549,112.03,111.96,0.67748555]
[1644332844210,13.4017,112.01,111.96,0.67748555]
[1644332844610,13.6517,112.01,111.96,0.67748555]
[1644332844809,13.6517,112.01,111.97,42.60705359]
[1644332845210,13.4017,112.01,111.97,42.60705359]
[1644332846011,12.9017,112.01,111.96,0.67748555]
[1644332846409,13.1517,112.01,111.96,0.67748555]
[1644332847011,49.92196931,112.01,111.96,0.67748555]
[1644332847411,13.1517,112.01,111.96,0.67748555]
[1644332848110,19.1517,112.01,111.96,0.67748555]
[1644332848915,35.10919411,112.0,111.96,0.67748555]
[1644332849113,78.0,111.98,111.96,8.555e-05]
[1644332849313,26.90915549,112.0,111.96,8.555e-05]
[1644332849615,0.25,111.98,111.96,8.555e-05]
[1644332850019,13.4062,111.97,111.96,8.555e-05]
[1644332850213,34.16869939,111.97,111.96,8.555e-05]
[1644332850417,49.15645488,111.97,111.96,8.555e-05]
[1644332850614,44.07875322,111.97,111.96,8.555e-05]
[1644332851416,30.75003282,111.96,111.82,49.37038431]
[1644332851617,13.4122,111.93,111.82,55.37038431]
[1644332851817,48.31994153,111.93,111.82,49.37038431]
[1644332852019,13.6622,111.93,111.82,49.37038431]
[1644332852216,13.6622,111.93,111.82,49.62038431]
[1644332852616,13.6622,111.93,111.82,55.62038431]
[1644332852818,13.6622,111.93,111.82,49.62038431]
[1644332853220,37.64353213,111.92,111.82,55.62038431]
[1644332853822,37.89353213,111.92,111.82,49.62038431]
[1644332854017,0.25,111.92,111.82,49.62038431]
[1644332854618,0.25,111.92,111.82,55.62038431]
[1644332854819,13.6622,111.93,111.82,49.62038431]
[1644332855231,59.73708203,111.93,111.82,49.62038431]
[1644332855419,6.25,111.93,111.82,49.62038431]
[1644332855623,0.25,111.93,111.83,12.88]
[1644332855820,6.0,111.93,111.85,13.4079]
[1644332856021,0.25,111.95,111.85,13.4079]
[1644332856325,43.15934687,111.95,111.86,39.45625029]
[1644332856524,37.15934687,111.95,111.86,39.45625029]
[1644332856722,56.56904687,111.95,111.86,39.45625029]
[1644332856923,19.4097,111.95,111.86,39.45625029]
[1644332857823,19.6597,111.95,111.86,39.45625029]
[1644332858224,19.6597,111.95,111.86,39.70625029]
[1644332858423,6.25,111.95,111.86,39.45625029]
[1644332858624,26.20863607,111.94,111.86,39.45625029]
[1644332858848,0.25,111.94,111.86,39.45625029]
[1644332859525,33.92409939,111.98,111.86,52.86405029]
[1644332859827,63.66908343,111.99,111.86,65.99405029]
[1644332860228,63.66908343,111.99,111.86,73.81256503]
[1644332860426,63.66908343,111.99,111.86,67.81256503]
[1644332860627,63.66908343,111.99,111.86,65.99405029]
[1644332861030,63.91908343,111.99,111.86,65.99405029]
[1644332861533,23.0777,111.99,111.86,65.99405029]
[1644332861830,23.0848,112.01,111.86,67.81256503]
[1644332862033,32.20216256,112.02,111.86,101.14496503]
[1644332862429,32.20216256,112.02,111.86,262.10496503]
[1644332862632,79.16443849,112.02,111.86,262.10496503]
[1644332863232,46.96227593,112.02,111.86,262.10496503]
[1644332863831,47.21227593,112.02,111.86,262.10496503]
[1644332865333,47.21227593,112.02,111.86,315.11496503]
[1644332865539,46.96227593,112.02,111.86,315.11496503]
[1644332865935,46.96227593,112.02,111.86,261.85496503]
[1644332866137,30.82757888,112.0,111.86,249.57045029]
[1644332866361,40.96227593,111.98,111.86,88.61045029]
[1644332866540,30.82757888,111.96,111.86,88.61045029]
[1644332866737,31.07757888,111.96,111.86,75.73045029]
[1644332867037,31.07757888,111.96,111.86,62.32265029]
[1644332867841,4.466,111.95,111.86,39.45625029]
[1644332868037,40.96227593,111.94,111.86,39.45625029]
[1644332868442,41.21227593,111.94,111.86,39.45625029]
[1644332869943,0.25,111.94,111.86,39.45625029]
[1644332870338,6.0,111.95,111.86,39.45625029]
[1644332870538,53.21074304,111.97,111.86,39.45625029]
[1644332870739,6.0,111.95,111.86,39.45625029]
[1644332870938,44.71147274,111.94,111.86,39.45625029]
[1644332871339,0.25,111.94,111.86,39.45625029]
[1644332872339,42.84763742,111.95,111.86,39.45625029]
[1644332872542,56.25893742,111.95,111.86,39.45625029]
[1644332872742,56.50893742,111.95,111.86,39.45625029]
[1644332873541,62.50893742,111.95,111.86,39.45625029]
[1644332874442,63.7446469,111.95,111.86,39.45625029]
[1644332875150,62.50893742,111.95,111.86,39.45625029]
[1644332875543,19.6613,111.95,111.86,39.45625029]
[1644332875741,20.89700948,111.95,111.86,39.45625029]
[1644332876142,19.6613,111.95,111.86,39.45625029]
[1644332877344,6.25,111.95,111.86,53.11515029]
[1644332877544,0.25,111.95,111.86,53.11515029]
[1644332877747,39.06210948,111.97,111.86,52.86515029]
[1644332878145,1.23570948,111.96,111.86,52.86515029]
[1644332878345,33.89752863,111.95,111.86,39.45625029]
[1644332878747,35.38323811,111.95,111.86,39.45625029]
[1644332878945,1.48570948,111.95,111.86,39.45625029]
[1644332879146,0.25,111.95,111.86,39.45625029]
[1644332879348,1.23570948,111.96,111.86,39.45625029]
[1644332879546,1.23570948,111.96,111.86,52.86535029]
[1644332879746,25.40320948,111.97,111.86,67.56386503]
[1644332879945,6.0,111.96,111.86,67.56386503]
[1644332880145,6.0,111.96,111.86,67.81386503]
[1644332880352,25.40320948,111.97,111.86,67.81386503]
[1644332880552,31.40320948,111.97,111.86,67.81386503]
[1644332880747,31.65320948,111.97,111.86,67.81386503]
[1644332881369,30.4175,111.97,111.86,67.81386503]
[1644332881568,6.0,111.97,111.86,67.81386503]
[1644332881969,1.23570948,111.98,111.86,67.81386503]
[1644332882468,1.23570948,111.98,111.86,65.99535029]
[1644332883174,1.48570948,111.98,111.86,65.99535029]
[1644332883375,1.23570948,111.98,111.86,65.99535029]
[1644332883770,14.64180948,111.98,111.86,65.74535029]
[1644332883971,46.77985644,111.98,111.86,65.74535029]
[1644332884171,1.23570948,111.96,111.86,52.86535029]
[1644332884370,5.70170948,111.96,111.84,26.291]
[1644332884570,19.25670801,111.95,111.84,13.411]
[1644332884772,13.4153,111.91,111.83,4.466]
[1644332885173,13.6653,111.91,111.83,4.466]
[1644332885371,13.6653,111.91,111.84,34.57753687]
[1644332885574,24.28276911,111.9,111.84,34.57753687]
[1644332885773,24.53276911,111.9,111.84,34.57753687]
[1644332886471,37.94846911,111.9,111.83,4.466]
[1644332886872,37.94846911,111.9,111.8,0.024]
[1644332887279,37.94846911,111.9,111.8,42.77044825]
[1644332887675,37.94846911,111.9,111.8,56.18644825]
[1644332887877,37.94846911,111.9,111.8,42.77044825]
[1644332888378,13.4195,111.87,111.8,42.77044825]
[1644332888579,34.16540184,111.86,111.8,42.74644825]
[1644332888976,34.41540184,111.86,111.8,42.74644825]
[1644332889177,34.41540184,111.86,111.78,0.024]
[1644332889378,53.83550184,111.86,111.77,1.53838256]
[1644332889580,53.83550184,111.86,111.77,0.274]
[1644332890094,53.83550184,111.86,111.77,0.024]
[1644332890279,53.83550184,111.86,111.77,40.36313346]
[1644332890881,53.83550184,111.86,111.77,40.33913346]
[1644332891482,53.83550184,111.86,111.75,0.024]
[1644332891682,66.71550184,111.86,111.75,0.024]
[1644332892281,112.53460184,111.86,111.75,1.84251474]
[1644332892481,112.53460184,111.86,111.76,40.72925596]
[1644332893583,112.28460184,111.86,111.76,54.15095596]
[1644332893787,116.75560184,111.86,111.76,54.15095596]
[1644332894087,116.75560184,111.86,111.76,40.72925596]
[1644332894686,117.00560184,111.86,111.76,40.72925596]
[1644332895287,117.00560184,111.86,111.76,40.70525596]
[1644332895691,112.53460184,111.86,111.76,40.70525596]
[1644332896089,37.62445297,111.84,111.76,40.70525596]
[1644332896289,37.87445297,111.84,111.76,40.70525596]
[1644332896489,51.29965297,111.84,111.76,40.70525596]
[1644332897492,51.04965297,111.84,111.76,40.70525596]
[1644332897695,37.62445297,111.84,111.76,40.70525596]
[1644332898796,37.87445297,111.84,111.76,40.70525596]
[1644332898998,48.96345297,111.84,111.76,40.70525596]
[1644332900000,54.96345297,111.84,111.76,40.70525596]
[1644332900208,54.96345297,111.84,111.75,0.024]
[1644332900398,54.96345297,111.84,111.74,13.4239]
[1644332900800,54.96345297,111.84,111.74,0.024]
[1644332901102,20.69680392,111.83,111.74,0.024]
[1644332901298,34.16540184,111.82,111.72,0.024]
[1644332901504,37.62445297,111.8,111.7,44.82490759]
[1644332901699,37.62445297,111.8,111.71,0.024]
[1644332901897,37.87445297,111.8,111.7,44.80090759]
[1644332903800,37.87445297,111.8,111.7,46.61460672]
[1644332904200,43.87445297,111.8,111.68,1.83769913]
[1644332904403,4.474,111.79,111.68,0.024]
[1644332904603,17.354,111.79,111.66,0.024]
[1644332904803,0.25,111.79,111.68,1.81369913]
[1644332905208,0.25,111.79,111.69,37.39202237]
[1644332905403,0.25,111.79,111.69,0.024]
[1644332905702,0.25,111.79,111.67,0.024]
[1644332905903,0.25,111.79,111.66,0.024]
[1644332906106,0.25,111.79,111.69,1.81369913]
[1644332906303,43.62445297,111.8,111.7,46.5739787]
[1644332906503,43.62445297,111.8,111.7,0.024]
[1644332906708,43.62445297,111.8,111.69,0.024]
[1644332906904,14.98775549,111.79,111.69,0.024]
[1644332907106,22.94599,111.78,111.67,0.024]
[1644332907309,12.88,111.77,111.67,0.024]
[1644332907506,34.16540184,111.76,111.64,44.06054384]
[1644332907704,34.16540184,111.76,111.65,0.024]
[1644332908506,36.27315733,111.76,111.65,0.024]
[1644332908708,34.16540184,111.76,111.65,0.024]
[1644332908907,34.41540184,111.76,111.65,0.024]
[1644332910512,34.16540184,111.76,111.65,0.024]
[1644332910709,36.27315733,111.76,111.65,0.024]
[1644332910909,40.16540184,111.76,111.65,0.024]
[1644332911111,53.04540184,111.76,111.65,0.024]
[1644332911710,53.29540184,111.76,111.65,0.024]
[1644332912910,35.49707394,111.74,111.65,0.024]
[1644332913109,35.49707394,111.74,111.64,44.03654384]
[1644332913311,35.74707394,111.74,111.64,44.03654384]
[1644332914512,41.74707394,111.74,111.64,59.27919342]
[1644332914913,41.74707394,111.74,111.64,57.47024384]
[1644332915535,41.74707394,111.74,111.64,44.03654384]
[1644332915948,6.25,111.74,111.64,44.03654384]
[1644332916136,0.25,111.74,111.64,46.09549342]
[1644332916337,6.0,111.74,111.64,46.09549342]
[1644332916546,23.8615,111.75,111.64,46.09549342]
[1644332916737,28.6961,111.78,111.64,58.97549342]
[1644332916738,37.1001,111.78,111.64,58.97549342]
[1644332916939,22.8879,111.8,111.65,0.024]
[1644332917137,38.97703936,111.81,111.66,48.89322342]
[1644332917337,38.97703936,111.81,111.67,0.024]
[1644332917544,44.97703936,111.81,111.68,61.30713127]
[1644332917738,44.97703936,111.81,111.69,0.024]
[1644332917937,44.97703936,111.81,111.7,12.88]
[1644332918137,44.97703936,111.81,111.71,34.97992535]
[1644332919839,45.22703936,111.81,111.71,48.40552535]
[1644332920040,0.25,111.81,111.71,48.40552535]
[1644332920239,13.13,111.84,111.71,48.40552535]
[1644332920437,12.88,111.84,111.72,0.024]
[1644332921138,47.16656359,111.83,111.72,0.024]
[1644332921539,63.25905365,111.83,111.72,0.024]
[1644332921743,76.38905365,111.83,111.72,0.024]
[1644332921940,24.62329122,111.81,111.72,0.024]
[1644332922341,24.87329122,111.81,111.72,0.024]
[1644332923748,32.98104671,111.81,111.7,0.024]
[1644332923951,59.84578128,111.81,111.7,0.024]
[1644332924149,50.7115,111.8,111.69,0.024]
[1644332924352,50.7115,111.8,111.66,0.024]
[1644332924353,59.3675,111.8,111.66,0.024]
[1644332924543,61.47525549,111.8,111.66,0.024]
[1644332924744,36.43831923,111.79,111.66,48.68713017]
[1644332924944,36.43831923,111.79,111.67,0.024]
[1644332925152,38.79607472,111.79,111.67,0.024]
[1644332925547,51.67607472,111.79,111.67,0.024]
[1644332925748,65.66080929,111.79,111.67,0.024]
[1644332926153,35.35153558,111.77,111.67,0.024]
[1644332926378,4.475,111.78,111.67,0.024]
[1644332926379,34.73249103,111.75,111.67,0.024]
[1644332926547,34.73249103,111.75,111.66,48.68713017]
[1644332926957,34.98249103,111.75,111.66,48.68713017]
[1644332927949,40.98249103,111.75,111.66,48.68713017]
[1644332929753,40.98249103,111.75,111.66,0.024]
[1644332929950,40.98249103,111.75,111.64,24.0076]
[1644332930152,43.09024652,111.75,111.64,24.0076]
[1644332930353,42.84024652,111.75,111.64,24.0076]
[1644332930553,40.73249103,111.75,111.64,43.65027014]
[1644332930751,40.73249103,111.75,111.65,49.12700018]
[1644332930954,40.73249103,111.75,111.65,49.15100018]
[1644332931153,6.0,111.75,111.66,13.4321]
[1644332931554,24.1215,111.78,111.66,13.4321]
[1644332931753,24.3715,111.78,111.67,0.024]
[1644332931955,26.47925549,111.78,111.67,0.024]
[1644332932258,42.82523112,111.77,111.67,43.1431617]
[1644332932457,40.0,111.75,111.63,4.475]
[1644332932858,12.88,111.74,111.61,1.26906759]
[1644332933057,43.69717783,111.74,111.6,1.26906759]
[1644332933360,31.07237918,111.73,111.61,42.9311807]
[1644332933556,12.88,111.72,111.58,62.89906759]
[1644332933757,13.443,111.71,111.58,13.4414]